Cogmind - Beta 14 @@@ ROGUE MODE // 2024.08.30 @ 19:43:02 Player: celerysam Result: Destroyed by G-34 Mercenary with Small Laser Performance ------------- Evolutions (1) 500 Regions Visited (4) 800 Robots Destroyed (39) 195 Value Destroyed (1304) 1304 Prototype IDs (0) 0 Alien Tech Used (0) 0 Bonus (474) 474 TOTAL SCORE: 3273 Bonus ------- Pacifist 200 High Alert Combat Kills 74 Entered Garrisons 200 Cogmind --------- Core Integrity 0/400 Matter 208/300 Energy 100/100 System Corruption 12% Temperature Cool (6) Movement Flying (40) Location -9/Garrison Parts ------- > --- POWER (1) -------- (None) > --- PROPULSION (4) --- Flight Unit > --- UTILITY (2) ------ Small Storage Unit Weight Redist. System > --- WEAPON (2) ------- (None) > --- INVENTORY (8) ---- Ion Engine Improved Ion Engine Improved Aluminum Leg Improved Aluminum Leg Hover Unit Hover Unit Datajack Peak State ------------ > --- POWER ------------ Reinforced Ion Engine > --- PROPULSION ------- Improved Aluminum Leg Improved Aluminum Leg Improved Aluminum Leg Improved Aluminum Leg > --- UTILITY ---------- Large Storage Unit Structural Scanner > --- WEAPON ----------- EM Shotgun Autogun > --- INVENTORY -------- Ion Engine Ion Engine Ion Engine Improved Ion Engine Improved Aluminum Leg Improved Aluminum Leg Compact Wheel Hover Unit Hover Unit Heat Sink Small Storage Unit Weight Redist. System Grenade Launcher Rocket Launcher Datajack [Rating: 18] Favorites ----------- Power Reinforced Ion Engine Engine Reinforced Ion Engine Propulsion Light Treads Treads Light Treads Leg Improved Aluminum Leg Wheel Wheel Flight Unit Flight Unit Utility Large Storage Unit Device Sensor Array Storage Large Storage Unit Weapon Assault Rifle Energy Gun EM Shotgun Ballistic Gun Assault Rifle Launcher Rocket Launcher Special Melee Weapon Datajack Build | -11 -10 -9 -9 -9 ------- Run | Yrd Mat Mat Sto Gar Slots Evolved 2 | . . 2 . . Power . | . . . . . Propulsion 2 | . . 2 . . Utility . | . . . . . Weapon . | . . . . . Parts Attached 43 | 6 3 7 13 14 Power 3 | 1 . 1 . 1 Engine 3 | 1 . 1 . 1 Core . | . . . . . Reactor . | . . . . . Propulsion 17 | 2 . 3 8 4 Treads 7 | . . 3 4 . Leg 4 | . . . 4 . Wheel 2 | 2 . . . . Hover . | . . . . . Flight 4 | . . . . 4 Utility 7 | 1 2 . 2 2 Device 4 | . 1 . 2 1 Storage 3 | 1 1 . . 1 Processor . | . . . . . Hackware . | . . . . . Protection . | . . . . . Artifact . | . . . . . Weapon 16 | 2 1 3 3 7 Energy Gun 2 | . . 1 . 1 Energy Cannon . | . . . . . Ballistic Gun 5 | 2 . 1 2 . Ballistic Cannon . | . . . . . Launcher 6 | . . 1 1 4 Special Weapon . | . . . . . Impact Weapon . | . . . . . Slashing Weapon . | . . . . . Piercing Weapon . | . . . . . Special Melee Weapon 3 | . 1 . . 2 Unidentified Prototypes . | . . . . . Parts Lost 14 | . . . 6 8 Power 1 | . . . . 1 Propulsion 5 | . . . 1 4 Utility 2 | . . . 2 . Weapon 6 | . . . 3 3 Highest Loss Streak 6 | . . . 4 6 To Critical Strikes . | . . . . . Average Slot Usage (%) 91 | . 98 92 93 74 Engine 11 | . 14 11 11 9 Treads 18 | . . 33 15 . Leg 7 | . . . 25 6 Wheel 7 | . 28 4 . . Flight 3 | . . . . 26 Device 10 | . 12 11 9 6 Storage 11 | . 14 11 11 11 Energy Gun 6 | . . 7 6 7 Ballistic Gun 12 | . 21 11 13 . Launcher 1 | . . 1 . 4 Special Melee Weapon 1 | . 7 1 . 1 Peak Build Rating 18 | 6 8 12 18 14 Average Rating 10 | 3 7 10 15 10 On Entrance 7 | . 6 8 12 13 Naked Turns . | . . . . . Heaviest Build 37 | 13 29 37 37 36 Greatest Support 80 | 26 26 60 80 39 Greatest Overweight (x) 8 | 3 1 . 2 8 Average Overweight (x) . | 1 . . . . Largest Inventory Capacity 15 | 8 15 15 15 15 Average Capacity 13 | 7 12 15 15 10 Most Carried 15 | 8 10 15 15 15 Average Carried 11 | 4 8 12 14 9 Final Capacity 15 | 8 15 15 15 8 Final Carried 15 | 6 10 15 15 7 Class Distribution -------------------- 92% | Mutant 7% | Scavenger-Mutant Dominant Class ---------------- Mutant | -10/Materials Mutant | -9/Materials Mutant | -9/Storage Scavenger-Mutant | -9/Garrison Resources | -11 -10 -9 -9 -9 ----------- Run | Yrd Mat Mat Sto Gar Matter Collected 927 | 183 66 243 306 129 Remotely . | . . . . . Salvage Created 1213 | . . 325 683 205 Parts 91 | . . 27 50 14 Haulers Intercepted . | . . . . . Recyclers Shooed . | . . . . . Parts Field Recycled . | . . . . . Retrieved Matter . | . . . . . Parts Self-Destructed . | . . . . . Prevented . | . . . . . Kills | -11 -10 -9 -9 -9 ------- Run | Yrd Mat Mat Sto Gar Combat Hostiles Destroyed 37 | . . 10 16 11 Guns 24 | . . 7 14 3 AOE 13 | . . 3 2 8 Classes Destroyed 6 | . . 5 . 1 Watcher 2 | . . 2 . . Swarmer 14 | . . 4 3 7 Grunt 11 | . . 4 5 2 Brawler 3 | . . 1 1 1 Duelist 1 | . . . . 1 Sentry 8 | . . 1 7 . Best Kill Streak 9 | . . 3 9 8 Combat Bots Only 9 | . . 3 9 8 Max Kills in Single Turn 3 | . . 2 2 3 Gunslinging 1 | . . . 1 . Exploded 3 | . . 2 1 3 Melee . | . . . . . Uniques/NPCs Destroyed . | . . . . . Combat | -11 -10 -9 -9 -9 -------- Run | Yrd Mat Mat Sto Gar Hostile Shots Fired 249 | . . 80 86 83 Missed 86 | . . 28 33 25 Damage Taken 1959 | . . 579 750 630 Core 401 | . . 88 61 252 Absorbed by Shields . | . . . . . Core Remaining (%) 100 | 100 100 . . . Volleys Fired 97 | . . 36 41 20 Largest 2 | . . 2 2 2 Hottest 86 | . . 65 68 86 Shots Fired 142 | . . 54 62 26 Gun 128 | . . 51 61 16 Cannon . | . . . . . Launcher 14 | . . 3 1 10 Special . | . . . . . Kinetic 86 | . . 33 52 1 Thermal 15 | . . . . 15 Explosive 14 | . . 3 1 10 Electromagnetic 27 | . . 18 9 . Robot Hit Streak 22 | . . 17 20 22 Robot Miss Streak 5 | . . 5 2 3 Penetration Max . | . . . . . Secondary Targets 2 | . . . 2 . Max Gunslinging Chain 1 | . . . 1 . Shots Hit Robots 90 | . . 31 51 8 Core Hits 68 | . . 19 28 21 Critical Kills . | . . . . . Critical Parts Destroyed 1 | . . . 1 . Critical Strikes 1 | . . . 1 . Destroy 1 | . . . 1 . Melee Attacks . | . . . . . Impact . | . . . . . Slashing . | . . . . . Piercing . | . . . . . Sneak Attacks . | . . . . . Combat Hostiles . | . . . . . Follow-up Attacks . | . . . . . Damage Inflicted 2235 | . . 694 803 738 Guns 1284 | . . 431 721 132 Cannons . | . . . . . Explosions 951 | . . 263 82 606 Melee . | . . . . . Ramming . | . . . . . Kinetic 848 | . . 229 604 15 Thermal 219 | . . 75 27 117 Explosive 849 | . . 188 55 606 Electromagnetic 319 | . . 202 117 . Impact . | . . . . . Slashing . | . . . . . Piercing . | . . . . . Highest Corruption 12 | . . . 7 12 Average Corruption 7 | . . . 6 7 Corruption Purged . | . . . . . Corruption Blocked . | . . . . . Effects 6 | . . . 1 5 Message Errors 1 | . . . . 1 Matter Fused 3 | . . . 1 2 Data Loss (minor) 1 | . . . . 1 Misfires 1 | . . . . 1 Overload Shots . | . . . . . Overflow Damage 20 | . . . . 20 Projectiles . | . . . . . Explosions 20 | . . . . 20 Melee . | . . . . . Knockbacks . | . . . . . Impact . | . . . . . Kinetic . | . . . . . Secondary . | . . . . . Self-Inflicted Damage 133 | . . 39 39 55 Shots 5 | . . 1 1 3 Rammed . | . . . . . Targets Rammed 1 | . . . 1 . Kicked 1 | . . . 1 . Crushed . | . . . . . Highest Temperature 111 | . . 42 63 111 Average Temperature 27 | . . 16 16 45 Received Heat Transfer 474 | . . 165 246 63 Siege Activations . | . . . . . Robots Corrupted . | . . . . . Combat Hostiles . | . . . . . Parts Fried . | . . . . . Impact Corruptions . | . . . . . Robots Melted . | . . . . . Combat Hostiles . | . . . . . Parts Melted . | . . . . . Heat Transferred 496 | . . 150 50 296 Parts Sabotaged . | . . . . . Parts Stolen . | . . . . . Parts Stripped . | . . . . . Power Chain Reactions 2 | . . 1 1 . Alert | -11 -10 -9 -9 -9 ------- Run | Yrd Mat Mat Sto Gar Peak Influence 589 | . 21 272 515 589 Initial 204 | . . 8 74 204 Average 156 | . 17 149 226 330 Maximum Alert Level 2 | . . 1 2 2 Low Security (%) 65 | 100 100 74 46 . Level 1 27 | . . 25 37 69 Level 2 7 | . . . 15 30 Level 3 . | . . . . . Level 4 . | . . . . . Level 5 . | . . . . . High Security . | . . . . . Max Security . | . . . . . Squads Dispatched 4 | . . 2 2 . Investigation . | . . . . . Extermination . | . . . . . Reinforcement 3 | . . 2 1 . Assault . | . . . . . Garrison 1 | . . . 1 . Intercept . | . . . . . Searches Triggered . | . . . . . Construction Impeded . | . . . . . Haulers Reinforced . | . . . . . Active Scanning Responses . | . . . . . Cargo Convoy Interrupts . | . . . . . Stealth | -11 -10 -9 -9 -9 --------- Run | Yrd Mat Mat Sto Gar Distress Signals 3 | . . 3 . . Communications Jammed . | . . . . . Distress Signals . | . . . . . Times Spotted 71 | . 4 18 19 30 Peak Tracking Total 12 | . 3 4 7 12 Tactical Retreats 3 | . . 1 1 1 Traps | -11 -10 -9 -9 -9 ------- Run | Yrd Mat Mat Sto Gar Traps Triggered . | . . . . . Indirectly . | . . . . . Trap Hack Attempts 17 | . 17 . . . Triggered . | . . . . . Disarmed 2 | . 2 . . . Reprogrammed 2 | . 2 . . . Reused . | . . . . . Traps Extracted . | . . . . . Installed . | . . . . . Triggered . | . . . . . Machines | -11 -10 -9 -9 -9 ---------- Run | Yrd Mat Mat Sto Gar Machines Disabled 4 | . . 1 . 3 Max in Single Turn 2 | . . 1 . 2 Garrison Relay 2 | . . . . 2 Machines Repaired . | . . . . . Machines Dismantled . | . . . . . Machines Sabotaged . | . . . . . Overloaded Fab Kills . | . . . . . Hacking | -11 -10 -9 -9 -9 --------- Run | Yrd Mat Mat Sto Gar Machines Accessed 6 | . 2 . 4 . Terminals 5 | . 2 . 3 . Fabricators . | . . . . . Repair Stations . | . . . . . Recycling Units . | . . . . . Scanalyzers . | . . . . . Garrison Access 1 | . . . 1 . Total Hacks 8 | . 3 . 5 . Successful 6 | . 2 . 4 . Failed 2 | . 1 . 1 . Catastrophic . | . . . . . Database Lockouts . | . . . . . Manual 2 | . 2 . . . Terminals 7 | . 3 . 4 . Fabricators . | . . . . . Repair Stations . | . . . . . Recycling Units . | . . . . . Scanalyzers . | . . . . . Garrison Access 1 | . . . 1 . Terminal Hacks 4 | . 1 . 3 . Record 1 | . . . 1 . Open Door 2 | . . . 2 . Zone Layout 1 | . 1 . . . Fabricator Hacks . | . . . . . Repair Station Hacks . | . . . . . Recycling Unit Hacks . | . . . . . Scanalyzer . | . . . . . Garrison Access Hacks 1 | . . . 1 . Unlock Access 1 | . . . 1 . Unauthorized Hacks 1 | . 1 . . . Terminals 1 | . 1 . . . Assimilate 1 | . 1 . . . Fabricators . | . . . . . Repair Stations . | . . . . . Recycling Units . | . . . . . Scanalyzers . | . . . . . Garrison Access . | . . . . . Data Cores Recovered . | . . . . . Used . | . . . . . Hacking Detections 3 | . . . 3 . Full Trace Events . | . . . . . Feedback Events . | . . . . . Feedback Blocked . | . . . . . Robot Schematics Acquired . | . . . . . Robots Built . | . . . . . Authchips . | . . . . . Time . | . . . . . Total Robot Build Rating . | . . . . . Part Schematics Acquired . | . . . . . Parts Built . | . . . . . Authchips . | . . . . . Time . | . . . . . Total Part Build Rating . | . . . . . Parts Repaired . | . . . . . Time . | . . . . . Parts Recycled . | . . . . . Recycled Matter . | . . . . . Retrieved Matter . | . . . . . Retrieved Components . | . . . . . Parts Scanalyzed . | . . . . . Part Schematics Acquired . | . . . . . Parts Damaged . | . . . . . Bothacking | -11 -10 -9 -9 -9 ------------ Run | Yrd Mat Mat Sto Gar Used RIF Installer . | . . . . . Robots Hacked . | . . . . . Non-combat . | . . . . . Combat . | . . . . . Robot Hacks Applied . | . . . . . Relay Couplers Released 7 | . . . . 7 Machine Destruction 7 | . . . . 7 Fabnet Peak Effective % . | . . . . . Robots Rewired . | . . . . . Allies Hacked . | . . . . . Hacks Repelled . | . . . . . Allies | -11 -10 -9 -9 -9 -------- Run | Yrd Mat Mat Sto Gar Total Allies 1 | . 1 . . . Largest Group 1 | . 1 1 . . Highest-Rated Group 10 | . 10 10 . . Highest-Rated Ally 10 | . 10 10 . . Total Orders . | . . . . . Ally Attacks . | . . . . . Total Damage . | . . . . . Kills . | . . . . . Allies Corrupted . | . . . . . Allies Melted . | . . . . . Intel | -11 -10 -9 -9 -9 ------- Run | Yrd Mat Mat Sto Gar Robot Analysis Total . | . . . . . Derelict Logs Recovered . | . . . . . Drone Launches . | . . . . . Drone Recoveries . | . . . . . Exploration | -11 -10 -9 -9 -9 ------------- Run | Yrd Mat Mat Sto Gar Turns Passed 1711 | 69 325 720 407 190 Spaces Moved 1136 | 44 276 363 198 255 Core 27 | 27 . . . . Treads 445 | . . 363 82 . Legs 132 | . . . 116 16 Wheels 293 | 17 276 . . . Hover . | . . . . . Flight 239 | . . . . 239 Fastest Speed 31 | 50 90 160 120 31 Average Speed 114 | 120 99 160 138 46 Slowest Speed 700 | 200 105 160 260 700 Overloaded Moves . | . . . . . Propulsion Burnouts . | . . . . . Robots Hopped 2 | . . . . 2 Cave-ins Triggered . | . . . . . Exploration Rate (%) 34 | 4 44 37 43 43 Regions Visited 4 Branch Regions 1 Pre-discovered Areas . | . . . . . Known Exits Taken 1 | . . . 1 . Unknown Exits Taken 3 | 1 1 1 . . Scrap Searched . | . . . . . Spaces Dug . | . . . . . Terrain Destroyed 60 | . . 15 17 28 Melee . | . . . . . Projectile . | . . . . . AOE 60 | . . 15 17 28 Terrain Rammed . | . . . . . Walls Destroyed . | . . . . . Machines Disabled . | . . . . . Actions | -11 -10 -9 -9 -9 --------- Run | Yrd Mat Mat Sto Gar Total 1412 | 59 327 448 279 299 Wait 65 | . 25 30 8 2 Move 1129 | 43 275 362 198 251 Hop 2 | . . . . 2 Pick Up 32 | 10 6 9 6 1 Fast Attach 12 | 2 . . 6 4 Attach 13 | 4 1 2 2 4 Detach 1 | . . . . 1 Swap 18 | . 2 5 5 6 Drop 25 | . 1 4 12 8 Fire 97 | . . 36 41 20 Melee . | . . . . . Ram . | . . . . . Kick 1 | . . . 1 . Crush . | . . . . . Escape Stasis . | . . . . . Rewire . | . . . . . Trap 17 | . 17 . . . Miscellaneous . | . . . . . Route ------- -11/Scrapyard -10/Materials -9/Materials -9/Storage -9/Garrison History --------- Turn | Location | Event 15 | -11/Scrapyard | Discovered new exit (range 16) 70 | -11/Scrapyard | Entered Materials 309 | -10/Materials | Build established: Mutant 389 | -10/Materials | Discovered new exit (range 3) 395 | -10/Materials | Entered another Materials area 395 | -9/Materials | Accompanied by 1 ally 395 | -9/Materials | Evolved 2 slots: Propulsion x2 931 | -9/Materials | Discovered new exit (range 6) 1115 | -9/Materials | Entered Storage 1480 | -9/Storage | Garrison activated, responded to threat 1522 | -9/Storage | Identified exit to Garrison 1522 | -9/Storage | Entered Garrison 1533 | -9/Garrison | Destroyed 9 combat bots 1538 | -9/Garrison | Triggered checkpoint 1570 | -9/Garrison | Lost 6 parts (2n1u3w) 1638 | -9/Garrison | Triggered checkpoint 1644 | -9/Garrison | Core integrity fell below 50% 1662 | -9/Garrison | Triggered checkpoint 1668 | -9/Garrison | Triggered checkpoint 1685 | -9/Garrison | Destroyed 8 combat bots 1686 | -9/Garrison | Triggered checkpoint 1690 | -9/Garrison | Garrison Relay disabled 1694 | -9/Garrison | Garrison Relay disabled 1696 | -9/Garrison | System corruption reached 10% 1705 | -9/Garrison | Core integrity fell below 20% 1712 | -9/Garrison | Destroyed by G-34 Mercenary with Small Laser Last Messages --------------- 01664_ B-36 Bruiser destroyed. 01665_ Knocked back. 01668_ Beams of light sweep through the air. An alarm sounds. 01671_ 0O: D0BPBYRZQV ,OLL 01690_ Garrison Relay disabled. 01690_ Relay Coupler [Grunt] tumbles out of relay unit. 01690_ Relay Coupler [Sentry] tumbles out of relay unit. 01690_ Relay Coupler [Brawler] tumbles out of relay unit. 01692_ Grenade Launcher destroyed. 01694_ Garrison Relay disabled. 01694_ Relay Coupler [Sentry] tumbles out of relay unit. 01694_ Relay Coupler [Grunt] tumbles out of relay unit. 01694_ Relay Coupler [Duelist] tumbles out of relay unit. 01695_ Imp. Ion Engine destroyed. 01695_ Flight Unit destroyed. 01701_ System corrupted: Matter fused (-9). 01710_ Acquired 89 matter. Map ----- +----------------------------------------------------+ | ?????????????????????????????????????????????????? | | ?????????????????????????????????????????????????? | | ?????????????????????????????????????????????????? | | ?????????????????????????????????????????????????? | | ?????????????????????????????????????????????????? | | ?????????????????????????????????????????????????? | | ?????????????????????????????????????????????????? | | ??????????????? ????????????????????????????????? | | ??????????????? ????????????????????????????????? | | ??????????????? ????????????????????????????????? | | ??????????????? #???????????????????????????????? | | ??????????????? #???????????????????????????????? | | ??????????????# #???????????????????????????????? | | ??????????????# #???????????????????????????????? | | ??????????????# #???????????????????????????????? | | ??????????????# #???????##??????????????????????? | | ??????????????# #??????? #?????????????????????? | | ??????????????# #???????# #????###############??? | | ??????????????# #???????# #????# #??? | | ???############ #???????# #????# #??? | | ???# #???????# ###??# " """"" #??? | | ???# #???????# C#??# ### ####" #??? | | ???# ######### #???????# C#?###+# " """#" #??? | | ???# #???????# #???????# ??# !"" #??? | | ???# #???????# #########g##### ps !"" #??? | | ???# #???????# g g b@g ! ! " #??? | | ???# #???????# ############### s s!"" #??? | | ???# #???????# #?????????????# ! "" #??? | | ""## ##??????# #?????????????##### "" ""#" #??? | | ######## #??????????????# #### ###" #??? | | #??????????????# """ """" #??? | | #??????????????# #??? | | ## ###########??????????????# #??? | | ## ###??????????????????????###############??? | | #???????????????????????????????????????? | | #???????????????????????????????????????? | | #???????????????????????????????????????? | | #???????????????????????????????????????? | | ## ###???????????????????????????????????????? | | ## ###???????????????????????????????????????? | | ?????????????????????????????????? | | ?????????????????????????????????? | | ?????????????????????????????????? | | #############??????????????????????????????????? | | #??????????????????????????????????????????????? | | ###??????????????????????????????????????????????? | | ?????????????????????????????????????????????????? | | ?????????????????????????????????????????????????? | | ?????????????????????????????????????????????????? | | ?????????????????????????????????????????????????? | +----------------------------------------------------+ Best States ------------- Heat Dissipation 28 Energy Generation 12 Energy Capacity 265 Matter Stores 300 Matter Capacity 300 Sight Range 16 Robot Scan Range 14 Terrain Scan Density 10 Additional Mass Support 6 Evasion (%) 63 Recoil Reduction 4 Item Schematics ----------------- None Robot Schematics ------------------ None Fabricated ------------ Nothing Alien Tech Used ----------------- None Achievements -------------- None Challenges ------------ None Game ------ Seed OvertunedClaymoresSuit Manual? 0 Play Time 00:27:42 Cumulative 138.3 hours Start 2024.08.30 @ 18:41:02 End 2024.08.30 @ 19:43:02 Sessions 1 Manual Loads 0 Difficulty Rogue Special Mode None Game No. 196 Rogue 196 Adventurer 0 Explorer 0 Win Type - Total 0 Types 0/0/0/0/0/0/0/0/0 Lore% 31 Gallery% 58 Achievement% 40 Wizard Run 0 Options --------- Layout 0 ASCII 0 Keyboard 0 Movement Mouse Keybinds 0 Fullscreen 1 Font 24/Smallcaps Map View 76x50 Zoom Use 0% Tactical HUD 1 Map Filters NONE Filters NONE Steam 1 RUN: 77300966-8991-4c04-8184-c7df42ef64c4